Cogmind - Beta 13 @@@ ROGUE MODE // 2024.06.23 @ 21:59:58 Player: Silis Result: Destroyed by G-47 Trooper with Particle Gun Performance ------------- Evolutions (2) 1000 Regions Visited (4) 800 Robots Destroyed (24) 120 Value Destroyed (747) 747 Prototype IDs (1) 20 Alien Tech Used (0) 0 Bonus (35) 35 TOTAL SCORE: 2722 Bonus ------- Follower Combat Kills 35 Cogmind --------- Core Integrity 0/550 Matter 300/300 Energy 95/100 System Corruption 0% Temperature Cool (9) Movement Core (50) Location -8/Materials Parts ------- > --- POWER (3) -------- (None) > --- PROPULSION (4) --- (None) > --- UTILITY (2) ------ (None) > --- WEAPON (2) ------- Katana > --- INVENTORY (5) ---- Flight Unit Flight Unit Thief Drone Bay (3/3) Peak State ------------ > --- POWER ------------ Light Nuclear Core Light Nuclear Core > --- PROPULSION ------- Aluminum Leg Aluminum Leg Titanium Leg Titanium Leg > --- UTILITY ---------- Hardlight Generator Thief Drone Bay > --- WEAPON ----------- Particle Cannon Light Assault Rifle > --- INVENTORY -------- Flight Unit Flight Unit Light Assault Rifle [Rating: 27] Favorites ----------- Power Ion Engine Engine Ion Engine Power Core Light Nuclear Core Propulsion Aluminum Leg Treads Light Treads Leg Aluminum Leg Hover Unit Hover Unit Flight Unit Flight Unit Utility Thief Drone Bay Device Thief Drone Bay Storage Compact Battery Weapon Light Assault Rifle Energy Gun Particle Gun Energy Cannon Particle Cannon Ballistic Gun Light Assault Rifle Slashing Weapon Katana Build | -11 -10 -9 -9 -8 ------- Run | Yrd Mat Mat Min Mat Slots Evolved 4 | . . 2 . 2 Power 2 | . . . . 2 Propulsion 2 | . . 2 . . Utility . | . . . . . Weapon . | . . . . . Parts Attached 36 | 6 1 4 9 16 Power 6 | 1 . . 1 4 Engine 4 | 1 . . 1 2 Core 2 | . . . . 2 Reactor . | . . . . . Propulsion 14 | 2 . 1 6 5 Treads 2 | 2 . . . . Leg 8 | . . . 3 5 Wheel . | . . . . . Hover 1 | . . . 1 . Flight 3 | . . 1 2 . Utility 7 | 1 1 1 1 3 Device 4 | . . 1 1 2 Storage 3 | 1 1 . . 1 Processor . | . . . . . Hackware . | . . . . . Protection . | . . . . . Artifact . | . . . . . Weapon 9 | 2 . 2 1 4 Energy Gun 1 | . . . . 1 Energy Cannon 3 | . . 2 1 . Ballistic Gun 4 | 2 . . . 2 Ballistic Cannon . | . . . . . Launcher . | . . . . . Special Weapon . | . . . . . Impact Weapon . | . . . . . Slashing Weapon 1 | . . . . 1 Piercing Weapon . | . . . . . Special Melee Weapon . | . . . . . Unidentified Prototypes 1 | . . . 1 . Corrupted Parts 1 | . . . 1 . System Corruption 1 | . . . 1 . Parts Lost 24 | . 2 . 5 17 Power 6 | . . . 2 4 Propulsion 10 | . 1 . 2 7 Utility 3 | . . . 1 2 Weapon 5 | . 1 . . 4 Highest Loss Streak 7 | . 1 . 3 7 To Critical Strikes . | . . . . . Average Slot Usage (%) 58 | . 76 38 47 62 Engine 7 | . 14 11 4 5 Core 2 | . . . . 4 Treads 4 | . 27 . . . Leg 14 | . . . 8 26 Flight 3 | . . 10 8 . Device 7 | . . 4 12 8 Storage 4 | . 10 . . 5 Energy Cannon 6 | . . 11 11 4 Ballistic Gun 5 | . 23 . . 3 Slashing Weapon 1 | . . . . 2 Naked Turns . | . . . . . Heaviest Build 88 | 13 88 13 12 24 Greatest Support 54 | 40 40 10 30 54 Greatest Overweight (x) 4 | . 2 2 2 4 Average Overweight (x) . | . . . . . Largest Inventory Capacity 25 | 8 25 5 5 5 Average Capacity 6 | 7 11 5 5 5 Most Carried 5 | 2 2 3 5 5 Average Carried 2 | . . . 2 3 Final Capacity 8 | 8 5 5 5 5 Final Carried 4 | . 2 1 4 3 Class Distribution -------------------- 76% | Mutant 23% | Scavenger-Mutant Dominant Class ---------------- Mutant | -10/Materials Mutant | -9/Materials Mutant | -9/Mines Scavenger-Mutant | -8/Materials Resources | -11 -10 -9 -9 -8 ----------- Run | Yrd Mat Mat Min Mat Matter Collected 670 | 89 167 . 165 249 Remotely . | . . . . . Salvage Created 871 | . 167 . 118 586 Parts 55 | . 8 . 7 40 Haulers Intercepted . | . . . . . Recyclers Shooed 1 | . . . . 1 Parts Field Recycled . | . . . . . Retrieved Matter . | . . . . . Parts Self-Destructed . | . . . . . Prevented . | . . . . . Kills | -11 -10 -9 -9 -8 ------- Run | Yrd Mat Mat Min Mat Combat Hostiles Destroyed 21 | . 2 . 3 16 Melee 2 | . . . . 2 Guns 10 | . 2 . . 8 Cannons 9 | . . . 3 6 Classes Destroyed 8 | . 3 . 1 4 Worker 1 | . . . . 1 Recycler 1 | . 1 . . . Watcher 1 | . 1 . . . Swarmer 6 | . . . . 6 Grunt 8 | . 2 . 2 4 Brawler 2 | . . . 1 1 Sentry 3 | . . . . 3 Hunter 2 | . . . . 2 Best Kill Streak 11 | . 4 . 2 11 Combat Bots Only 11 | . 2 . 2 11 Max Kills in Single Turn 1 | . 1 . 1 1 Gunslinging . | . . . . . Exploded . | . . . . . Melee 1 | . . . . 1 Uniques/NPCs Destroyed . | . . . . . Combat | -11 -10 -9 -9 -8 -------- Run | Yrd Mat Mat Min Mat Hostile Shots Fired 357 | . 75 . 65 217 Missed 104 | . 20 . 31 53 Damage Taken 3019 | . 660 . 487 1872 Core 835 | . 142 . 135 558 Absorbed by Shields 156 | . . . . 156 Core Remaining (%) 69 | 100 43 . 66 . Volleys Fired 92 | . 15 . 15 62 Largest 2 | . 2 . 1 2 Hottest 88 | . 40 . 68 88 Shots Fired 128 | . 30 . 15 83 Gun 94 | . 30 . . 64 Cannon 34 | . . . 15 19 Launcher . | . . . . . Special . | . . . . . Kinetic 73 | . 30 . . 43 Thermal 46 | . . . 6 40 Explosive . | . . . . . Electromagnetic 9 | . . . 9 . Robot Hit Streak 7 | . 6 . 4 7 Robot Miss Streak 4 | . 4 . 2 4 Penetration Max . | . . . . . Secondary Targets 3 | . 1 . . 2 Max Gunslinging Chain 1 | . 1 . . 1 Shots Hit Robots 75 | . 16 . 6 53 Core Hits 44 | . 8 . 4 32 Critical Kills . | . . . . . Critical Parts Destroyed . | . . . . . Critical Strikes 2 | . . . . 2 Burn 2 | . . . . 2 Melee Attacks 4 | . . . . 4 Impact . | . . . . . Slashing 4 | . . . . 4 Piercing . | . . . . . Sneak Attacks 1 | . . . . 1 Combat Hostiles . | . . . . . Follow-up Attacks . | . . . . . Damage Inflicted 1248 | . 202 . 165 881 Guns 597 | . 202 . . 395 Cannons 454 | . . . 144 310 Explosions . | . . . . . Melee 165 | . . . . 165 Ramming 32 | . . . 21 11 Kinetic 416 | . 202 . . 214 Thermal 572 | . . . 81 491 Explosive . | . . . . . Electromagnetic 63 | . . . 63 . Impact . | . . . . . Slashing 165 | . . . . 165 Piercing . | . . . . . Highest Corruption 11 | . 2 3 11 . Average Corruption 6 | . 1 2 6 . Corruption Purged . | . . . . . Corruption Blocked . | . . . . . Effects 14 | . . 1 13 . Message Errors 3 | . . . 3 . Matter Fused 7 | . . 1 6 . Energy Discharges 1 | . . . 1 . Parts Rejected 1 | . . . 1 . Misdirections 2 | . . . 2 . Overload Shots . | . . . . . Overflow Damage 29 | . . . . 29 Projectiles 1 | . . . . 1 Explosions . | . . . . . Melee 28 | . . . . 28 Knockbacks . | . . . . . Impact . | . . . . . Kinetic . | . . . . . Secondary . | . . . . . Self-Inflicted Damage . | . . . . . Shots . | . . . . . Rammed 1 | 1 . . . . Targets Rammed 13 | 1 . . 11 1 Kicked 12 | . . . 11 1 Crushed . | . . . . . Highest Temperature 382 | . 21 . 37 382 Average Temperature 120 | . 11 . 16 165 Received Heat Transfer 1033 | . 366 . 6 661 Effects 6 | . . . . 6 Shutdowns 2 | . . . . 2 Energy Bleed 1 | . . . . 1 Matter Decay 1 | . . . . 1 Short Circuit 2 | . . . . 2 Siege Activations . | . . . . . Robots Corrupted . | . . . . . Combat Hostiles . | . . . . . Parts Fried . | . . . . . Impact Corruptions . | . . . . . Robots Melted . | . . . . . Combat Hostiles . | . . . . . Parts Melted 2 | . . . . 2 Heat Transferred 1295 | . . . 148 1147 Parts Sabotaged . | . . . . . Parts Stolen . | . . . . . Parts Stripped . | . . . . . Power Chain Reactions . | . . . . . Alert | -11 -10 -9 -9 -8 ------- Run | Yrd Mat Mat Min Mat Peak Influence 364 | . 92 59 315 364 Initial 44 | . . 29 22 44 Average 130 | . 51 31 195 159 Maximum Alert Level 1 | . . . 1 1 Low Security (%) 69 | 100 100 100 45 62 Level 1 30 | . . . 54 37 Level 2 . | . . . . . Level 3 . | . . . . . Level 4 . | . . . . . Level 5 . | . . . . . High Security . | . . . . . Max Security . | . . . . . Squads Dispatched 1 | . . . . 1 Investigation . | . . . . . Extermination . | . . . . . Reinforcement 1 | . . . . 1 Assault . | . . . . . Garrison . | . . . . . Intercept . | . . . . . Searches Triggered . | . . . . . Construction Impeded . | . . . . . Haulers Reinforced . | . . . . . Active Scanning Responses . | . . . . . Cargo Convoy Interrupts . | . . . . . Stealth | -11 -10 -9 -9 -8 --------- Run | Yrd Mat Mat Min Mat Distress Signals 3 | . . . . 3 Communications Jammed . | . . . . . Distress Signals . | . . . . . Times Spotted 59 | . 7 . 19 33 Peak Tracking Total 11 | . 4 1 4 11 Tactical Retreats 7 | . . . 6 1 Traps | -11 -10 -9 -9 -8 ------- Run | Yrd Mat Mat Min Mat Traps Triggered 4 | . 2 2 . . Indirectly . | . . . . . Trap Hack Attempts . | . . . . . Triggered . | . . . . . Disarmed . | . . . . . Reprogrammed . | . . . . . Reused . | . . . . . Traps Extracted . | . . . . . Installed . | . . . . . Triggered . | . . . . . Machines | -11 -10 -9 -9 -8 ---------- Run | Yrd Mat Mat Min Mat Machines Disabled 1 | . . . . 1 Max in Single Turn 1 | . . . . 1 Machines Repaired . | . . . . . Machines Dismantled . | . . . . . Machines Sabotaged . | . . . . . Overloaded Fab Kills . | . . . . . Hacking | -11 -10 -9 -9 -8 --------- Run | Yrd Mat Mat Min Mat Machines Accessed 2 | . 1 . 1 . Terminals . | . . . . . Fabricators . | . . . . . Repair Stations . | . . . . . Recycling Units 1 | . 1 . . . Scanalyzers . | . . . . . Garrison Access . | . . . . . Total Hacks 3 | . 2 . 1 . Successful 3 | . 2 . 1 . Failed . | . . . . . Catastrophic . | . . . . . Database Lockouts . | . . . . . Manual . | . . . . . Terminals . | . . . . . Fabricators . | . . . . . Repair Stations . | . . . . . Recycling Units 2 | . 2 . . . Scanalyzers . | . . . . . Garrison Access . | . . . . . Terminal Hacks 1 | . . . 1 . Open Door 1 | . . . 1 . Fabricator Hacks . | . . . . . Repair Station Hacks . | . . . . . Recycling Unit Hacks 2 | . 2 . . . Report Inventory 1 | . 1 . . . Retrieve Matter 1 | . 1 . . . Scanalyzer . | . . . . . Garrison Access Hacks . | . . . . . Unauthorized Hacks . | . . . . . Terminals . | . . . . . Fabricators . | . . . . . Repair Stations . | . . . . . Recycling Units . | . . . . . Scanalyzers . | . . . . . Garrison Access . | . . . . . Data Cores Recovered . | . . . . . Used . | . . . . . Hacking Detections . | . . . . . Full Trace Events . | . . . . . Feedback Events . | . . . . . Feedback Blocked . | . . . . . Robot Schematics Acquired . | . . . . . Robots Built . | . . . . . Authchips . | . . . . . Time . | . . . . . Total Robot Build Rating . | . . . . . Part Schematics Acquired . | . . . . . Parts Built . | . . . . . Authchips . | . . . . . Time . | . . . . . Total Part Build Rating . | . . . . . Parts Repaired . | . . . . . Time . | . . . . . Parts Recycled . | . . . . . Recycled Matter . | . . . . . Retrieved Matter . | . . . . . Retrieved Components . | . . . . . Parts Scanalyzed . | . . . . . Part Schematics Acquired . | . . . . . Parts Damaged . | . . . . . Bothacking | -11 -10 -9 -9 -8 ------------ Run | Yrd Mat Mat Min Mat Used RIF Installer . | . . . . . Robots Hacked . | . . . . . Non-combat . | . . . . . Combat . | . . . . . Robot Hacks Applied . | . . . . . Relay Couplers Released . | . . . . . Fabnet Peak Effective % . | . . . . . Robots Rewired . | . . . . . Allies Hacked . | . . . . . Hacks Repelled . | . . . . . Allies | -11 -10 -9 -9 -8 -------- Run | Yrd Mat Mat Min Mat Total Allies 2 | . . . 2 . Largest Group 2 | . . . 2 . Highest-Rated Group 40 | . . . 40 . Highest-Rated Ally 31 | . . . 31 . Total Orders . | . . . . . Ally Attacks 34 | . . . 34 . Total Damage 227 | . . . 227 . Kills 6 | . . . 6 . Allies Corrupted . | . . . . . Allies Melted . | . . . . . Intel | -11 -10 -9 -9 -8 ------- Run | Yrd Mat Mat Min Mat Robot Analysis Total . | . . . . . Derelict Logs Recovered 1 | . . . 1 . Drone Launches 3 | . . . 3 . Drone Recoveries 3 | . . . 3 . Exploration | -11 -10 -9 -9 -8 ------------- Run | Yrd Mat Mat Min Mat Turns Passed 1778 | 101 298 149 451 779 Spaces Moved 1477 | 62 138 157 666 454 Core 75 | 10 . 8 38 19 Treads 190 | 52 138 . . . Legs 589 | . . . 154 435 Wheels . | . . . . . Hover . | . . . . . Flight 623 | . . 149 474 . Fastest Speed 37 | 50 160 40 37 120 Average Speed 99 | 142 184 87 58 132 Slowest Speed 320 | 160 320 200 190 250 Overloaded Moves . | . . . . . Propulsion Burnouts . | . . . . . Robots Hopped 2 | . . . 2 . Cave-ins Triggered . | . . . . . Exploration Rate (%) 30 | 5 34 16 67 32 Regions Visited 4 Branch Regions 1 Pre-discovered Areas . | . . . . . Known Exits Taken . | . . . . . Unknown Exits Taken 4 | 1 1 1 1 . Scrap Searched 1 | . . . 1 . Spaces Dug . | . . . . . Terrain Destroyed . | . . . . . Melee . | . . . . . Projectile . | . . . . . AOE . | . . . . . Terrain Rammed . | . . . . . Walls Destroyed . | . . . . . Machines Disabled . | . . . . . Actions | -11 -10 -9 -9 -8 --------- Run | Yrd Mat Mat Min Mat Total 1664 | 74 156 169 711 554 Wait . | . . . . . Move 1470 | 62 137 156 661 454 Hop 2 | . . . 2 . Pick Up 35 | 6 1 4 10 14 Fast Attach . | . . . . . Attach 36 | 6 1 4 9 16 Detach 5 | . 2 1 1 1 Swap . | . . . . . Drop 8 | . . 4 2 2 Fire 92 | . 15 . 15 62 Melee 4 | . . . . 4 Ram . | . . . . . Kick 12 | . . . 11 1 Crush . | . . . . . Escape Stasis . | . . . . . Rewire . | . . . . . Trap . | . . . . . Miscellaneous . | . . . . . Route ------- -11/Scrapyard -10/Materials -9/Materials -9/Mines -8/Materials History --------- Turn | Location | Event 11 | -11/Scrapyard | Discovered new exit (range 14) 102 | -11/Scrapyard | Entered Materials 317 | -10/Materials | Build established: Mutant 349 | -10/Materials | Core integrity fell below 50% 387 | -10/Materials | Discovered new exit (range 5) 400 | -10/Materials | Entered another Materials area 400 | -9/Materials | Evolved 2 slots: Propulsion x2 542 | -9/Materials | Discovered new exit (range 13) 549 | -9/Materials | Entered Mines 554 | -9/Mines | Learned Materials stockpile data 721 | -9/Mines | Found the Drone Emporium 724 | -9/Mines | Found Prototype Device 728 | -9/Mines | Identified Thief Drone Bay 789 | -9/Mines | System corruption reached 10% 819 | -9/Mines | Lost 3 parts (1p1n1u) 979 | -9/Mines | Discovered new exit (range 15) 1000 | -9/Mines | Entered Materials 1000 | -8/Materials | Evolved 2 slots: Power x2 1446 | -8/Materials | Destroyed 11 combat bots 1454 | -8/Materials | Lost 7 parts (2p2n3w) 1570 | -8/Materials | Core integrity fell below 50% 1606 | -8/Materials | Lost 5 parts (1p2n1u1w) 1751 | -8/Materials | Core integrity fell below 20% 1779 | -8/Materials | Destroyed by G-47 Trooper with Particle Gun Last Messages --------------- Acquired 36 matter. Acquired Aluminum Leg. Acquired 17 matter. Acquired Aluminum Leg. Acquired 10 matter. Aluminum Leg destroyed. Sneak attack on K-01 Serf. Destroyed Lgt. Ion Engine. K-01 Serf destroyed. O-16 Technician: "IFF HANDSHAKE FAILED. SECURING TERMINAL." O-16 Technician uses terminal to summon reinforcements. ALERT: Hostiles spotted, dispatching reinforcements to Terminal M003. O-16 Technician locks terminal. Aluminum Leg destroyed. Com. Battery destroyed. Broken Rnf. Ion Engine destroyed. Y-45 Defender destroyed. Map ----- +----------------------------------------------------+ | ?????????????????????????????????????????????????? | | ?????????????????????????????????????????????????? | | ?????????????????????????????????????????????????? | | ?????????????????????????????????????????????????? | | ?????????????????????????????????????????????????? | | ?????????????????????????????????????????????????? | | ?????????????????????????????????????????????????? | | ?????????????????????????????????????????????????? | | ?????????????????????????????????????????????????? | | ????????????????????????????????#####????????????? | | ????????????????????????? ??????#"""#????????????? | | ????????????????????????? ######"T"######???????? | | ?????????????????????????? #???????? | | ?????????????????????????? #???????? | | ??????????????????????????? "T" #???????? | | ????????????????????########### #???????? | | ????????????????????# # #???????? | | ????????????????????# """ # !!! #???????? | | ????????????????????# """ + !!! #???????? | | ????????????????????# """ # !! ######### | | ????????????????????# ]]!# | | ????????????????????# [ ]! # ######### | | ???????????????????## g]! # #####+##???????# | | ???????????????????# =g[ # # #???????# | | ???????????????????######/##### # """ !#???????# | | ???????????????????????#!@[ + + """ #???????# | | ???????????????????????#| # # """ #???????# | | ???????????????????????# # # ? #???????? | | ???????????????????????# # #? ?? #???????? | | ???????????????????????# # #?##???#???????? | | ???????????????????????# ! # #??????????????? | | ???????????????????????######## #??????????????? | | ???????????????????????##T##### #??????????????? | | ???????????????????????# #??????????????? | | ???????????????????????# #??????????????? | | ???????????????????????# #??????????????? | | ???????????????????????## ######+#####???????????? | | ????????????????????????# ## ????????????? | | ????????????????????????# ## ????????????? | | ????????????????????????# ## ????????????? | | ????????????????????????# ## """ """ #???????????? | | ????????????????????????# ## """ """ #???????????? | | ????????????????????????# ## """ """ #???????????? | | ????????????????????????# ## #???????????? | | ??????????????????#####?# ## #???????????? | | ??????????????????#! #?# ###+####+###???????????? | | ??????????????????# !### ### #### ##????????????? | | ??????????????????# # #????????????? | | ???????????????????# #????????????? | | ???????????????????# #????????????? | +----------------------------------------------------+ Best States ------------- Heat Dissipation 41 Energy Generation 23 Energy Capacity 490 Matter Stores 300 Matter Capacity 300 Sight Range 16 Terrain Scan Density 10 Additional Mass Support 6 Evasion (%) 62 Recoil Reduction 2 Item Schematics ----------------- None Robot Schematics ------------------ None Fabricated ------------ Nothing Alien Tech Used ----------------- None Achievements -------------- None Challenges ------------ None Game ------ Seed ProtonLargeWarhead Manual? 0 Play Time 00:22:26 Cumulative 4.6 hours Start 2024.06.23 @ 21:41:22 End 2024.06.23 @ 21:59:58 Sessions 1 Manual Loads 0 Difficulty Rogue Special Mode None Game No. 15 Rogue 15 Adventurer 0 Explorer 0 Win Type - Total 0 Types 0/0/0/0/0/0/0/0/0 Lore% 2 Gallery% 10 Achievement% 12 Wizard Run 0 Options --------- Layout 1 ASCII 0 Keyboard 0 Movement Arrows Keybinds 0 Fullscreen 1 Font 32/SmallcapsGlow Map View 50x40 Zoom Use 0% Tactical HUD 0 Map Filters NONE Filters NONE Steam 1 RUN: d2a30e88-f99d-4251-afe3-5b02610f2b88